Workbook

Sheet 01.07.2019
E2: Приложение № 11
E3: к постановлению администрации
E4: ЗАТО г.Радужный Владимирской области
E5: от 22.07.2019г. № 973
A6: Сведения о фактической численности муниципальных служащих, работников казенных и бюджетных учреждений и расходы на их денежное содержание по состоянию на 01.07.2019 г.
F7: тыс.руб.
A8: №п/п | B8: Раздел (подраздел) | C8: Наименование разделов (подразделов) расходов | D8: Фактическая численность на 01.07.2019 г. (чел.) | E8: Годовой фонд оплаты труда с начислениями | F8: Исполнено за отчетный период
A9: 1 | B9: 2 | C9: 3 | D9: 4 | E9: 5 | F9: 6
A10: 1 | B10: 0100 | C10: Общегосударственные вопросы, всего, в том числе | D10: =D11+D12+D13+D14+D15 -> 179 | E10: =E12+E13+E14+E15 -> 56437.1 | F10: =F12+F13+F14+F15 -> 27344.72
A11: 1.1 | B11: 0102 | C11: Функционирование высшего должностного лица субъекта Российской Федерации и муниципального образования | D11: 1
A12: 1.2 | B12: 0103 | C12: Функционирование представительных органов местного самоуправления | D12: 2 | E12: 1148.7 | F12: 576.2
A13: 1.3 | B13: 0104 | C13: Функционирование местных администраций | D13: 17 | E13: 10396.95 | F13: 4664.47
A14: 1.4 | B14: 0106 | C14: Обеспечение деятельности финансовых органов | D14: 9 | E14: 5047.82 | F14: 2255.02
A15: 1.5 | B15: 0113 | C15: Другие общегосударственные вопросы | D15: 150 | E15: 39843.63 | F15: 19849.03
A16: 2 | B16: 0300 | C16: Национальная безопасность и правоохранительная деятельность, всего, в т. ч. | D16: =D17 -> 4 | E16: =E17 -> 2227.71 | F16: =F17 -> 1084.56
A17: 2.1 | B17: 0309 | C17: Защита населения и территории от последствий чрезвычайных ситуаций природного и техногенного характера,гражданская оборона | D17: 4 | E17: 2227.71 | F17: 1084.56
A18: 3. | B18: 0400 | C18: Национальная экономика | D18: 39 | E18: 14860.8 | F18: 6458.85
A19: 4 | B19: 0500 | C19: Жилищно-коммунальное хозяйство | D19: 95 | E19: 34613.74 | F19: 16413.61
A20: 5 | B20: 0700 | C20: Образование,всего,в том числе | D20: =D21+D22+D23+D24 -> 552 | E20: =E21+E22+E23+E24 -> 211640.26 | F20: =F21+F22+F23+F24 -> 115966.74
A21: 5.1 | B21: 0701 | C21: Дошкольное образование | D21: 251 | E21: 82884.05 | F21: 43665.81
A22: 5.2 | B22: 0702 | C22: Общее образование | D22: 180 | E22: 83563.3 | F22: 49284.59
A23: 5.3 | B23: 0703 | C23: Учреждения по внешкольной работе с детьми | D23: 95 | E23: 35517.28 | F23: 18391.9
A24: 5.4. | B24: 0709 | C24: Другие вопросы в области образования, всего, в том числе | D24: 26 | E24: 9675.63 | F24: 4624.44
A25: 6. | B25: 0800 | C25: Культура, кинематография | D25: =D26+D27 -> 88 | E25: =E26+E27 -> 30657.46 | F25: =F26+F27 -> 15639.58
A26: 6.1 | B26: 0801 | C26: Культура | D26: 50 | E26: 19969.22 | F26: 10405.44
A27: 6.2 | B27: 0804 | C27: Другие вопросы в области культуры,кинематографии | D27: 38 | E27: 10688.24 | F27: 5234.14
A28: 7. | B28: 1000 | C28: Социальная политика | D28: =D29 -> 2 | E28: =E29 -> 961.17 | F28: =F29 -> 425.85
A29: 7.1 | B29: 1006 | C29: Другие вопросы в области социальной политики | D29: 2 | E29: 961.17 | F29: 425.85
A30: 8. | B30: 1100 | C30: Физическая культура и спорт | D30: =D31 -> 1 | E30: =E31 -> 729.63 | F30: =F31 -> 83.26
A31: 8.1 | B31: 1103 | C31: Спорт высших достижений | D31: 1 | E31: 729.63 | F31: 83.26
C32: Всего: | D32: =D10+D16+D18+D19+D20+D25+D28+D30 -> 960 | E32: =E10+E16+E18+E19+E20+E25+E28+E30 -> 352127.87 | F32: 183417.17
B34: И.о. начальника финансового управления | E34: М.Л.Семенович
C46: Исп. В.Н. Милованова
